[Event "Nordic-chT Scholastic 2019"]
[Site "Stockholm"]
[Date "2019.09.06"]
[Round "2.10"]
[White "Elmi, Saad Abobaker"]
[Black "Grahn, Vidar"]
[Result "1/2-1/2"]
[ECO "B36"]
[WhiteElo "1620"]
[BlackElo "1962"]
[Annotator "NA"]
[PlyCount "66"]
[EventDate "2019.09.05"]
[EventType "team-tourn"]
[EventCountry "SWE"]
[SourceTitle "playchess.com"]
[Source "ChessBase"]
[SourceQuality "1"]
[TimeControl "5400+30"]

1. e4 {[%emt 0:00:00]} c5 {[%emt 0:00:00]} 2. Nf3 {[%emt 0:00:00]} Nc6 {[%emt 0:00:00]} 3. d4 {[%emt 0:00:00]} cxd4 {[%emt 0:00:00]} 4. Nxd4 {[%emt 0:00:00]} g6 {[%emt 0:00:00]} 5. c4 {[%emt 0:00:03]} Nf6 {[%emt 0:00:00]} 6. Nc3 {[%emt 0:00:26]} d6 {[%emt 0:00:07]} 7. Be2 {[%emt 0:00:57]} Nxd4 {[%emt 0:00:06]} 8. Qxd4 {[%emt 0:00:24]} Bg7 {[%emt 0:00:08]} 9. O-O {[%emt 0:00:23]} O-O {[%emt 0:00:14]} 10. f3 {[%emt 0:02:06] B36: Sicilian: Maroczy Bind: Gurgenidze System} (10. Qe3 Bd7 11. Rd1 Qa5 12. Bd2 Bc6 13. Nd5 Qd8 14. Rab1 Nd7 15. b4 e6 16. Nc3 b6 17. Qg3 Qe7 18. Bg5 f6 {0-1 (29) Zhigalko,A (2545)-Melkumyan,H (2670) St Petersburg 2018}) 10... Be6 {[%emt 0:04:46]} 11. Qd3 {[%emt 0:02:45]} Nd7 {[%emt 0:02:38]} 12. b3 {[%emt 0:00:23]} Nc5 {[%emt 0:09:33]} 13. Qc2 $146 {[%emt 0:00:14]} ({Predecessor:} 13. Qd2 a5 14. Rb1 Qb6 15. Kh1 Bxc3 16. Qxc3 Qb4 17. Qd4 f6 18. f4 a4 {0-1 (46) Maiberg,W (1905)-De Haro,M (1987) Florianopolis 2015}) 13... a5 {[%emt 0:01:36]} 14. Be3 {[%emt 0:00:40]} Qd7 {[%emt 0:12:15]} 15. Rad1 {[%emt 0:00:13]} Rfc8 {[%emt 0:00:51]} 16. Nd5 {[%emt 0:00:55]} Bxd5 {[%emt 0:00:21]} 17. Rxd5 {[%emt 0:00:06]} Qc6 {[%emt 0:08:55]} 18. Qd2 {[%emt 0:01:30]} b6 {[%emt 0:03:48]} 19. Bh6 {[%emt 0:00:44]} Be5 {[%emt 0:01:07]} 20. f4 {[%emt 0:00:46]} Nxe4 {[%emt 0:08:45]} 21. Qe3 {[%emt 0:01:05]} e6 {[%emt 0:01:13]} 22. Rb5 {[%emt 0:01:14]} Bh8 {[%emt 0:03:31]} 23. f5 $17 {[%emt 0:02:48]} exf5 24. g4 Nc3 {[%emt 0:04:56]} 25. Rbxf5 {[%emt 0:02:01]} Nxe2+ {[%emt 0:01:32]} 26. Qxe2 {[%emt 0:00:23]} gxf5 {[%emt 0:01:59]} 27. Rxf5 {[%emt 0:00:14]} Bd4+ {[%emt 0:00:14]} 28. Be3 {[%emt 0:00:17]} Qe4 {[%emt 0:00:56]} 29. Rf3 {[%emt 0:00:19]} Re8 {[%emt 0:00:13]} 30. Kg2 {[%emt 0:02:51]} Bxe3 {[%emt 0:00:22]} 31. h3 Bd4 {[%emt 0:00:31]} 32. Qd2 {[%emt 0:00:19]} Qe2+ {[%emt 0:00:07]} 33. Kg3 {[%emt 0:00:02]} Qxd2 {[%emt 0:00:08]} 1/2-1/2

[Event "Nordic-chT Scholastic 2019"]
[Site "Stockholm"]
[Date "2019.09.06"]
[Round "2.11"]
[White "Platkovs, Daniils"]
[Black "Vo, Hy Chang"]
[Result "1-0"]
[ECO "C02"]
[WhiteElo "1431"]
[BlackElo "1301"]
[Annotator "NA"]
[PlyCount "47"]
[EventDate "2019.09.05"]
[EventType "team-tourn"]
[EventCountry "SWE"]
[SourceTitle "playchess.com"]
[Source "ChessBase"]
[SourceQuality "1"]
[TimeControl "5400+30"]

1. e4 {[%emt 0:00:00]} e6 {[%emt 0:00:00]} 2. d4 {[%emt 0:00:00]} d5 {[%emt 0:00:00]} 3. e5 {[%emt 0:00:00]} c5 {[%emt 0:00:00]} 4. c3 Nc6 {[%emt 0:00:00]} 5. Nf3 {[%emt 0:00:12]} Qb6 {[%emt 0:00:02]} 6. Be2 {[%emt 0:00:26]} Bd7 {[%emt 0:01:03]} 7. O-O {[%emt 0:00:16]} Be7 {[%emt 0:01:34]} 8. Re1 {[%emt 0:01:05]} Rc8 {[%emt 0:00:21]} 9. a3 {[%emt 0:03:26]} cxd4 {[%emt 0:02:15]} 10. cxd4 {[%emt 0:00:34]} f6 {[%emt 0:02:04]} 11. b4 {[%emt 0:02:21]} a6 {[%emt 0:02:01]} 12. Bb2 {[%emt 0:01:23]} Na7 {[%emt 0:05:17]} 13. Nc3 {[%emt 0:04:09]} a5 {[%emt 0:01:49]} 14. Na4 {[%emt 0:02:43]} Qc6 {[%emt 0:02:19]} 15. Nc5 {[%emt 0:05:57]} Bxc5 {[%emt 0:02:07]} 16. dxc5 {[%emt 0:00:39]} Qc7 {[%emt 0:06:08]} 17. Rc1 {[%emt 0:04:20]} Nc6 {[%emt 0:01:46]} 18. b5 {[%emt 0:03:52]} Nxe5 {[%emt 0:02:22]} 19. Nxe5 {[%emt 0:00:32]} fxe5 {[%emt 0:00:12]} 20. Bh5+ {[%emt 0:01:50]} Kf8 {[%emt 0:04:58]} 21. Bxe5 {[%emt 0:01:28]} Qd8 {[%emt 0:01:10]} 22. Bd6+ {[%emt 0:00:10]} Ne7 {[%emt 0:00:18]} 23. Qf3+ {[%emt 0:00:08]} Kg8 {[%emt 0:01:03]} 24. Qf7# {[%emt 0:00:09]} 1-0

[Event "Nordic-chT Scholastic 2019"]
[Site "Stockholm"]
[Date "2019.09.07"]
[Round "3.3"]
[White "Heidarsson, Arnar Milutin"]
[Black "Stromgard, Martin"]
[Result "1-0"]
[ECO "D00"]
[WhiteElo "1756"]
[BlackElo "1648"]
[Annotator "NA RC"]
[PlyCount "73"]
[EventDate "2019.09.05"]
[EventType "team-tourn"]
[EventCountry "SWE"]
[SourceTitle "playchess.com"]
[Source "ChessBase"]
[SourceQuality "1"]
[TimeControl "5400+30"]

1. d4 {[%emt 0:00:00]} d5 {[%emt 0:00:00]} 2. Nc3 {[%emt 0:00:00]} e6 {[%emt 0:00:15]} 3. Bf4 {[%emt 0:00:00]} c6 {[%emt 0:02:10]} 4. e3 {[%emt 0:00:36]} c5 {[%emt 0:03:23]} 5. Nb5 {[%emt 0:00:38]} Na6 {[%emt 0:04:08]} 6. c3 {[%emt 0:00:23]} c4 {[%emt 0:03:07]} 7. b3 {[%emt 0:02:59]} Bd7 {[%emt 0:04:57]} 8. bxc4 {[%emt 0:02:02]} Qa5 {[%emt 0:02:59]} 9. Qb3 {[%emt 0:00:29]} dxc4 {[%emt 0:05:25]} 10. Bxc4 Nb4 {[%emt 0:25:30]} 11. Nc7+ {[%emt 0:02:56]} Kd8 {[%emt 0:00:10]} 12. Nxa8 {[%emt 0:00:29]} Ba4 {[%emt 0:00:09]} 13. Bc7+ {[%emt 0:00:12]} Qxc7 {[%emt 0:00:12]} 14. Nxc7 {[%emt 0:00:08]} Bxb3 {[%emt 0:00:08]} 15. Bxb3 {[%emt 0:00:08]} Kxc7 {[%emt 0:01:04]} 16. cxb4 {[%emt 0:00:07]} Bxb4+ {[%emt 0:00:06]} 17. Ke2 {[%emt 0:00:05]} Nf6 {[%emt 0:01:06]} 18. Nf3 {[%emt 0:00:08]} Ne4 {[%emt 0:00:56]} 19. Rac1+ {[%emt 0:00:14]} Kb6 {[%emt 0:02:35]} 20. Rhf1 {[%emt 0:00:45]} Nc3+ {[%emt 0:02:02]} 21. Kd3 {[%emt 0:00:29]} Nb5 {[%emt 0:00:19]} 22. Ne5 {[%emt 0:00:32]} f6 {[%emt 0:00:29]} 23. Nd7+ {[%emt 0:00:22]} Ka6 {[%emt 0:00:10]} 24. Bc4 {[%emt 0:00:34]} Ka5 {[%emt 0:00:34]} 25. Bxb5 {[%emt 0:01:08]} Kxb5 {[%emt 0:00:26]} 26. Rb1 {[%emt 0:00:02]} Ka5 {[%emt 0:02:23]} 27. a3 {[%emt 0:00:11]} Bxa3 {[%emt 0:02:44]} 28. Ra1 {[%emt 0:00:20]} Kb5 {[%emt 0:00:45]} 29. Rxa3 {[%emt 0:00:11]} a6 {[%emt 0:00:12]} 30. Rb1+ {[%emt 0:00:12]} Kc6 {[%emt 0:00:09]} 31. Nc5 {[%emt 0:00:15]} Ra8 {[%emt 0:00:23]} 32. Rxb7 {[%emt 0:00:09]} e5 {[%emt 0:00:04]} 33. Kc4 {[%emt 0:00:14]} exd4 {[%emt 0:00:53]} 34. exd4 {[%emt 0:00:02]} Kd6 {[%emt 0:00:13]} 35. Rd7+ {[%emt 0:00:08]} Kc6 {[%emt 0:00:09]} 36. d5+ {[%emt 0:00:07]} Kb6 {[%emt 0:00:10]} 37. Rb7# {[%emt 0:00:11]} 1-0

[Event "Nordic-chT Scholastic 2019"]
[Site "Stockholm"]
[Date "2019.09.07"]
[Round "3.4"]
[White "Gaudras, Allan"]
[Black "Hakonarson, Sverrir"]
[Result "0-1"]
[ECO "A45"]
[WhiteElo "1380"]
[BlackElo "1531"]
[Annotator "NA RC"]
[PlyCount "126"]
[EventDate "2019.09.05"]
[EventType "team-tourn"]
[EventCountry "SWE"]
[SourceTitle "playchess.com"]
[Source "ChessBase"]
[SourceQuality "1"]
[TimeControl "5400+30"]

1. d4 {[%emt 0:00:00]} Nf6 {[%emt 0:00:00]} 2. e3 {[%emt 0:00:00]} c5 {[%emt 0:00:53]} 3. c3 {[%emt 0:00:09]} e6 {[%emt 0:01:00]} 4. Bd3 {[%emt 0:00:26]} b6 {[%emt 0:01:17]} 5. f4 {[%emt 0:00:12]} Bb7 {[%emt 0:01:04]} 6. Nf3 {[%emt 0:00:23]} Be7 {[%emt 0:01:41]} 7. Nbd2 {[%emt 0:00:12]} O-O {[%emt 0:03:27]} 8. O-O {[%emt 0:00:07]} Qc7 {[%emt 0:01:09]} 9. Qc2 {[%emt 0:01:35]} Nc6 {[%emt 0:01:46]} 10. Ng5 {[%emt 0:01:04]} h6 {[%emt 0:05:24]} 11. Nge4 {[%emt 0:02:44]} Nd5 {[%emt 0:03:23]} 12. Rf3 {[%emt 0:03:10]} f5 {[%emt 0:01:16]} 13. Nf2 {[%emt 0:00:08]} Rac8 {[%emt 0:01:15]} 14. Nb3 {[%emt 0:05:15]} Nxd4 15. cxd4 Nb4 {[%emt 0:13:38]} 16. Qe2 {[%emt 0:03:49]} Bxf3 {[%emt 0:02:07]} 17. Qxf3 {[%emt 0:00:38]} Nxd3 {[%emt 0:02:23]} 18. Nxd3 {[%emt 0:01:21]} c4 {[%emt 0:00:49]} 19. Ne5 {[%emt 0:00:11]} cxb3 {[%emt 0:00:30]} 20. axb3 {[%emt 0:00:14]} Bb4 {[%emt 0:09:02]} 21. Nd3 {[%emt 0:00:50]} Bd6 {[%emt 0:00:27]} 22. Bd2 {[%emt 0:00:16]} Qc2 {[%emt 0:02:44]} 23. Qe2 {[%emt 0:00:11]} a5 {[%emt 0:01:27]} 24. b4 {[%emt 0:00:19]} Bxb4 {[%emt 0:00:47]} 25. Nxb4 {[%emt 0:00:08]} axb4 {[%emt 0:00:30]} 26. Qe1 {[%emt 0:01:16]} Ra8 {[%emt 0:07:54]} 27. Bxb4 {[%emt 0:01:41]} Rxa1 {[%emt 0:00:32]} 28. Qxa1 {[%emt 0:00:05]} Rc8 {[%emt 0:00:11]} 29. Bc3 {[%emt 0:00:10]} Qe4 {[%emt 0:01:39]} 30. Qe1 {[%emt 0:00:15]} Qc6 {[%emt 0:01:20]} 31. Qg3 {[%emt 0:00:07]} d5 {[%emt 0:00:06]} 32. Qg6 {[%emt 0:02:00]} Qe8 {[%emt 0:04:42]} 33. Qg3 {[%emt 0:00:15]} b5 {[%emt 0:00:26]} 34. Qe1 {[%emt 0:00:25]} Qc6 {[%emt 0:01:52]} 35. h3 {[%emt 0:01:58]} Qc4 {[%emt 0:01:31]} 36. Kh2 {[%emt 0:01:23]} Qb3 {[%emt 0:03:22]} 37. Qd2 {[%emt 0:01:16]} Rc4 {[%emt 0:00:52]} 38. Ba5 {[%emt 0:00:44]} Rc2 {[%emt 0:00:48]} 39. Qe1 {[%emt 0:00:33]} Qxb2 {[%emt 0:01:04]} 40. Qg3 {[%emt 0:00:35]} Kh7 {[%emt 0:00:32]} 41. h4 {[%emt 0:00:18]} Qa3 {[%emt 0:01:32]} 42. h5 {[%emt 0:01:07]} Qe7 {[%emt 0:00:22]} 43. Qg6+ {[%emt 0:00:52]} Kg8 {[%emt 0:00:27]} 44. Kh3 {[%emt 0:00:37]} Qf7 {[%emt 0:00:22]} 45. Qxf7+ {[%emt 0:01:11]} Kxf7 {[%emt 0:00:07]} 46. Kg3 {[%emt 0:00:25]} Rc4 {[%emt 0:00:11]} 47. Kf3 {[%emt 0:00:21]} b4 {[%emt 0:00:02]} 48. Bxb4 {[%emt 0:00:18]} Rxb4 {[%emt 0:00:08]} 49. g4 {[%emt 0:00:07]} fxg4+ {[%emt 0:00:22]} 50. Kxg4 {[%emt 0:00:05]} Kf6 {[%emt 0:00:11]} 51. Kg3 {[%emt 0:00:15]} Rb1 {[%emt 0:00:23]} 52. Kg2 {[%emt 0:00:13]} Kf5 {[%emt 0:00:21]} 53. Kf3 {[%emt 0:00:06]} Rh1 {[%emt 0:00:19]} 54. e4+ {[%emt 0:00:06]} dxe4+ {[%emt 0:00:08]} 55. Ke3 {[%emt 0:00:01]} Rxh5 {[%emt 0:00:19]} 56. d5 {[%emt 0:00:04]} exd5 {[%emt 0:00:15]} 57. Kf2 {[%emt 0:00:06]} Kxf4 {[%emt 0:00:48]} 58. Kg2 {[%emt 0:00:05]} d4 {[%emt 0:00:35]} 59. Kf2 {[%emt 0:00:04]} Rh2+ {[%emt 0:00:13]} 60. Kf1 {[%emt 0:00:07]} Kf3 {[%emt 0:00:23]} 61. Kg1 {[%emt 0:00:18]} Ra2 {[%emt 0:00:55]} 62. Kh1 {[%emt 0:00:04]} Kg3 {[%emt 0:00:13]} 63. Kg1 {[%emt 0:00:02]} Ra1# 0-1

[Event "Nordic-chT Scholastic 2019"]
[Site "Stockholm"]
[Date "2019.09.07"]
[Round "3.5"]
[White "Skovgaard, Andreas"]
[Black "Aalto, Patrik"]
[Result "0-1"]
[ECO "D02"]
[WhiteElo "1976"]
[BlackElo "2104"]
[Annotator "NA RC"]
[PlyCount "114"]
[EventDate "2019.09.05"]
[EventType "team-tourn"]
[EventCountry "SWE"]
[SourceTitle "playchess.com"]
[Source "ChessBase"]
[SourceQuality "1"]
[TimeControl "5400+30"]

1. d4 {[%emt 0:00:00]} d5 {[%emt 0:00:00]} 2. Nf3 {[%emt 0:00:01]} c5 {[%emt 0:00:15]} 3. c3 {[%emt 0:01:45]} Nf6 {[%emt 0:07:58]} 4. dxc5 {[%emt 0:03:45]} e6 {[%emt 0:02:09]} 5. b4 {[%emt 0:01:05]} a5 {[%emt 0:01:04]} 6. a3 {[%emt 0:02:14] D02: 1 d4 d5 2 Nf3 sidelines, including 2...Nf6 3 g3 and 2...Nf6 3 Bf4} (6. Qb3 axb4 7. cxb4 b6 8. cxb6 Qxb6 9. b5 Nbd7 10. e3 Nc5 11. Qd1 Na4 12. Be2 Bd7 13. O-O {0-1 (51) So,W (2812)-Vachier Lagrave,M (2796) Paris 2017}) 6... b6 {[%emt 0:09:12]} 7. cxb6 {[%emt 0:10:11]} axb4 {[%emt 0:00:40]} 8. cxb4 {[%emt 0:00:36]} Bxb4+ {[%emt 0:01:39]} 9. Bd2 {[%emt 0:00:47]} Bc5 {[%emt 0:08:58]} 10. Nc3 $146 {[%emt 0:01:45]} ({Predecessor:} 10. e3 O-O 11. Qb3 Bxb6 12. Bb4 Re8 13. Bb5 {0-1 (74) Kappes,K (1994)-Belica,M (2108) Baden 2013}) 10... Ne4 {[%emt 0:22:18]} 11. e3 {[%emt 0:03:50]} Nxd2 {[%emt 0:01:41]} 12. Qxd2 {[%emt 0:05:09]} Qxb6 {[%emt 0:12:21]} 13. Rb1 {[%emt 0:05:52]} Qa5 {[%emt 0:05:51]} 14. Na4 {[%emt 0:01:01]} Nd7 {[%emt 0:05:16]} 15. Qxa5 {[%emt 0:10:52]} Rxa5 {[%emt 0:00:07]} 16. Nxc5 {[%emt 0:00:27]} Nxc5 {[%emt 0:01:42]} 17. Bb5+ {[%emt 0:00:53]} Ke7 {[%emt 0:02:33]} 18. O-O {[%emt 0:00:34]} Ba6 {[%emt 0:09:15]} 19. Bxa6 {[%emt 0:02:53]} Rxa6 {[%emt 0:02:02]} 20. Rfc1 {[%emt 0:00:57]} Ne4 {[%emt 0:03:41]} 21. Ne5 {[%emt 0:00:37]} Kf6 {[%emt 0:00:50]} 22. Ng4+ {[%emt 0:04:37]} Kg6 {[%emt 0:00:09]} 23. f3 {[%emt 0:03:07]} Nd2 {[%emt 0:00:34]} 24. Rb7 {[%emt 0:02:48]} Nc4 {[%emt 0:00:19]} 25. e4 {[%emt 0:01:46]} h5 {[%emt 0:00:25]} 26. exd5 {[%emt 0:00:56]} exd5 {[%emt 0:00:32]} 27. Rd7 $2 {[%emt 0:06:49]} (27. Nf2 $11 {and White has nothing to worry.}) 27... hxg4 {[%emt 0:01:10]} 28. Rxd5 {[%emt 0:00:08]} Nxa3 {[%emt 0:00:45]} 29. fxg4 {[%emt 0:00:12]} Rb8 {[%emt 0:00:25]} 30. Rcc5 {[%emt 0:02:55]} f6 {[%emt 0:00:34]} 31. Rd7 {[%emt 0:00:53]} Nb5 {[%emt 0:00:22]} 32. h4 {[%emt 0:00:33]} (32. h3 $142) 32... Ra7 {[%emt 0:00:29]} 33. Rdd5 {[%emt 0:01:01]} Nc7 {[%emt 0:00:28]} 34. Rd2 {[%emt 0:04:18]} Ne6 {[%emt 0:00:23]} 35. Rc6 {[%emt 0:00:31]} Re7 {[%emt 0:00:24]} 36. Re2 {[%emt 0:01:21]} Kf7 {[%emt 0:00:14]} 37. Rc4 {[%emt 0:00:43]} Rd8 {[%emt 0:00:27]} 38. Ree4 {[%emt 0:01:28]} Rd5 {[%emt 0:00:32]} 39. Kh2 {[%emt 0:01:39]} Re5 {[%emt 0:00:37]} 40. Rxe5 {[%emt 0:02:58]} (40. Kg3 $142) 40... fxe5 {[%emt 0:00:01]} 41. g5 {[%emt 0:00:11]} Nf4 {[%emt 0:00:58]} 42. g4 {[%emt 0:00:33]} Ke6 {[%emt 0:00:57]} 43. h5 {[%emt 0:01:02]} Kd5 {[%emt 0:00:28]} 44. Rc2 {[%emt 0:00:10]} e4 {[%emt 0:00:27]} 45. Kg3 {[%emt 0:03:56]} Ne6 {[%emt 0:00:45]} 46. g6 {[%emt 0:01:21]} Nd4 {[%emt 0:00:18]} 47. Ra2 {[%emt 0:02:55]} e3 {[%emt 0:00:16]} 48. Ra5+ {[%emt 0:01:38]} Kc4 {[%emt 0:00:40]} 49. Ra4+ {[%emt 0:00:14]} Kd3 {[%emt 0:00:18]} 50. g5 {[%emt 0:00:45]} e2 {[%emt 0:00:19]} 51. Ra1 {[%emt 0:00:12]} e1=Q+ {[%emt 0:00:42]} 52. Rxe1 {[%emt 0:00:02]} Rxe1 {[%emt 0:00:10]} 53. h6 {[%emt 0:00:08]} Re8 {[%emt 0:01:14]} 54. Kf4 {[%emt 0:00:55]} Ne6+ {[%emt 0:00:30]} 55. Kf5 {[%emt 0:00:15]} Kd4 {[%emt 0:00:32]} 56. hxg7 {[%emt 0:00:27]} Kd5 {[%emt 0:00:16]} 57. Kf6 {[%emt 0:00:15]} Rg8 {[%emt 0:00:08] Ke5+ Kxe5} 0-1

[Event "Nordic-chT Scholastic 2019"]
[Site "Stockholm"]
[Date "2019.09.07"]
[Round "3.6"]
[White "Lehtinen, Justus"]
[Black "Skovgaard, Emil"]
[Result "0-1"]
[ECO "B78"]
[WhiteElo "1485"]
[BlackElo "1729"]
[Annotator "NA RC"]
[PlyCount "68"]
[EventDate "2019.09.05"]
[EventType "team-tourn"]
[EventCountry "SWE"]
[SourceTitle "playchess.com"]
[Source "ChessBase"]
[SourceQuality "1"]
[TimeControl "5400+30"]

1. e4 {[%emt 0:00:00]} c5 {[%emt 0:00:02]} 2. Nf3 {[%emt 0:00:00]} d6 {[%emt 0:00:13]} 3. d4 {[%emt 0:00:00]} cxd4 {[%emt 0:00:10]} 4. Nxd4 {[%emt 0:00:00]} Nf6 {[%emt 0:00:22]} 5. Nc3 {[%emt 0:00:16]} g6 {[%emt 0:00:22]} 6. Be3 {[%emt 0:01:12]} Bg7 {[%emt 0:00:29]} 7. f3 {[%emt 0:00:48]} O-O {[%emt 0:00:50]} 8. Qd2 {[%emt 0:00:39]} Nc6 {[%emt 0:00:22]} 9. O-O-O {[%emt 0:00:36]} Bd7 {[%emt 0:01:38]} 10. Bc4 {[%emt 0:01:13]} Rc8 {[%emt 0:01:39]} 11. Nxc6 {[%emt 0:05:14]} Rxc6 {[%emt 0:17:47]} 12. Bb3 {[%emt 0:05:14]} a5 {[%emt 0:07:47]} 13. h4 {[%emt 0:04:01]} h5 {[%emt 0:01:50]} 14. Bh6 {[%emt 0:01:54]} Qb8 {[%emt 0:14:32]} 15. Nd5 {[%emt 0:14:12]} Nxd5 {[%emt 0:04:49]} 16. Bxd5 {[%emt 0:01:02]} Rc5 {[%emt 0:00:41]} 17. Bxg7 {[%emt 0:03:22]} Kxg7 {[%emt 0:00:41]} 18. c3 {[%emt 0:04:47]} Rfc8 {[%emt 0:04:39]} 19. Bb3 {[%emt 0:02:46]} a4 {[%emt 0:01:27]} 20. Bxa4 {[%emt 0:02:27]} Bxa4 {[%emt 0:02:00]} 21. Qd4+ {[%emt 0:00:16]} Kg8 {[%emt 0:00:41]} 22. Qxa4 {[%emt 0:00:16]} b5 {[%emt 0:00:38]} 23. Qc2 {[%emt 0:05:35]} b4 {[%emt 0:01:04]} 24. Rd3 {[%emt 0:02:43]} Qa7 {[%emt 0:02:12]} 25. Qb3 {[%emt 0:04:09]} bxc3 {[%emt 0:00:45]} 26. Rxc3 {[%emt 0:00:28]} Rxc3+ {[%emt 0:00:35]} 27. bxc3 {[%emt 0:00:18]} Qe3+ {[%emt 0:06:26]} 28. Kb2 {[%emt 0:06:52]} Qd2+ {[%emt 0:00:24]} 29. Kb1 {[%emt 0:01:42]} Rxc3 {[%emt 0:01:11]} 30. Qb8+ {[%emt 0:02:11]} Kh7 {[%emt 0:01:31]} 31. Qf8 {[%emt 0:05:33]} Qd3+ {[%emt 0:03:56]} 32. Ka1 {[%emt 0:03:48]} Qc4 {[%emt 0:00:46]} 33. Rb1 {[%emt 0:02:33]} Rc2 {[%emt 0:00:38]} 34. Rb3 {[%emt 0:02:37]} Qd4+ {[%emt 0:01:02]} 0-1

[Event "Nordic-chT Scholastic 2019"]
[Site "Stockholm"]
[Date "2019.09.07"]
[Round "3.7"]
[White "Kraemmer, Kischichiro"]
[Black "Aurela, Valtteri"]
[Result "1-0"]
[ECO "A40"]
[WhiteElo "1591"]
[BlackElo "1467"]
[Annotator "NA RC"]
[PlyCount "61"]
[EventDate "2019.09.05"]
[EventType "team-tourn"]
[EventCountry "SWE"]
[SourceTitle "playchess.com"]
[Source "ChessBase"]
[SourceQuality "1"]
[TimeControl "5400+30"]

1. d4 {[%emt 0:00:00]} e6 {[%emt 0:00:00]} 2. Nf3 {[%emt 0:00:00]} d5 {[%emt 0:01:19]} 3. c4 {[%emt 0:00:00]} c5 {[%emt 0:02:32]} 4. e3 {[%emt 0:01:07]} Nf6 {[%emt 0:01:58]} 5. Nc3 {[%emt 0:00:33]} cxd4 {[%emt 0:02:51]} 6. exd4 {[%emt 0:01:38]} Bb4 {[%emt 0:01:38]} 7. Bg5 {[%emt 0:00:22]} O-O {[%emt 0:03:00]} 8. a3 {[%emt 0:01:34]} Bxc3+ {[%emt 0:03:31]} 9. bxc3 {[%emt 0:00:15]} h6 {[%emt 0:00:50]} 10. Bh4 {[%emt 0:00:13]} Nbd7 {[%emt 0:01:38]} 11. cxd5 {[%emt 0:00:40]} exd5 {[%emt 0:02:04]} 12. Be2 {[%emt 0:00:25]} Qc7 {[%emt 0:01:26]} 13. Qc2 {[%emt 0:01:38]} Ne4 {[%emt 0:02:26]} 14. Rc1 {[%emt 0:00:50]} Qa5 {[%emt 0:04:38]} 15. Qb2 {[%emt 0:02:05]} Nb6 {[%emt 0:02:19]} 16. Be7 {[%emt 0:18:59]} Re8 {[%emt 0:23:42]} 17. Bb4 {[%emt 0:01:15]} Qa4 {[%emt 0:01:41]} 18. Nd2 {[%emt 0:12:30]} Nxd2 {[%emt 0:04:26]} 19. Kxd2 {[%emt 0:01:58]} Bf5 {[%emt 0:03:48]} 20. Rhe1 {[%emt 0:02:35]} Be4 {[%emt 0:03:01]} 21. f3 {[%emt 0:01:04]} Bg6 {[%emt 0:01:36]} 22. Bc5 {[%emt 0:01:56]} Re6 {[%emt 0:02:41]} 23. Qb4 {[%emt 0:10:22]} Qxb4 {[%emt 0:01:43]} 24. cxb4 {[%emt 0:05:23]} Na4 {[%emt 0:01:55]} 25. Bb5 {[%emt 0:05:59]} Nb2 {[%emt 0:03:01]} 26. Rxe6 {[%emt 0:04:37]} fxe6 {[%emt 0:01:09]} 27. Kc3 {[%emt 0:02:01]} a6 {[%emt 0:01:50]} 28. Kxb2 {[%emt 0:09:29]} axb5 {[%emt 0:00:36]} 29. Bd6 {[%emt 0:00:23]} Ra6 {[%emt 0:01:32]} 30. Rc8+ {[%emt 0:00:49]} Kf7 {[%emt 0:01:03]} 31. Rf8# {[%emt 0:00:12]} 1-0

[Event "Nordic-chT Scholastic 2019"]
[Site "Stockholm"]
[Date "2019.09.07"]
[Round "3.9"]
[White "Briem, Benedikt"]
[Black "Falkevall, Axel"]
[Result "0-1"]
[ECO "D10"]
[WhiteElo "1906"]
[BlackElo "2000"]
[Annotator "NA RC"]
[PlyCount "60"]
[EventDate "2019.09.05"]
[EventType "team-tourn"]
[EventCountry "SWE"]
[SourceTitle "playchess.com"]
[Source "ChessBase"]
[SourceQuality "1"]
[TimeControl "5400+30"]

1. d4 {[%emt 0:00:00]} d5 {[%emt 0:00:00]} 2. c4 {[%emt 0:00:00]} c6 {[%emt 0:00:00]} 3. Nc3 {[%emt 0:00:01]} Nf6 {[%emt 0:00:00]} 4. cxd5 {[%emt 0:00:12]} cxd5 {[%emt 0:00:02]} 5. f3 {[%emt 0:00:26]} Qb6 {[%emt 0:00:28]} 6. e4 {[%emt 0:02:40]} dxe4 {[%emt 0:00:10]} 7. fxe4 {[%emt 0:00:37]} e5 {[%emt 0:00:04]} 8. Bb5+ {[%emt 0:01:23]} Nc6 {[%emt 0:00:11]} 9. d5 {[%emt 0:06:48]} Bb4 {[%emt 0:00:11]} 10. Qd3 {[%emt 0:06:57]} a6 {[%emt 0:04:38]} 11. Bxc6+ {[%emt 0:07:17]} bxc6 {[%emt 0:00:23]} 12. Qg3 {[%emt 0:06:32]} O-O {[%emt 0:07:10]} 13. Be3 {[%emt 0:08:45]} Bxc3+ {[%emt 0:04:52]} 14. bxc3 {[%emt 0:01:14]} Qb2 {[%emt 0:00:20]} 15. Rc1 {[%emt 0:08:52]} Nxe4 {[%emt 0:00:53]} 16. Qf3 {[%emt 0:05:40]} cxd5 {[%emt 0:04:51]} 17. Ne2 {[%emt 0:00:25]} Be6 {[%emt 0:01:58]} 18. O-O {[%emt 0:02:33]} Qxa2 {[%emt 0:04:19]} 19. Ng3 {[%emt 0:00:58]} f5 {[%emt 0:12:03]} 20. Nxe4 {[%emt 0:03:37]} dxe4 {[%emt 0:02:18]} 21. Qh5 {[%emt 0:00:15]} Rab8 {[%emt 0:03:05]} 22. g4 {[%emt 0:01:48]} Bf7 {[%emt 0:23:07]} 23. Qg5 {[%emt 0:01:28]} f4 {[%emt 0:01:26]} 24. Bc5 {[%emt 0:00:51]} Rb2 {[%emt 0:01:06]} 25. Qh4 {[%emt 0:01:02]} Rg2+ {[%emt 0:04:01]} 26. Kh1 {[%emt 0:00:04]} e3 {[%emt 0:01:46]} 27. c4 {[%emt 0:06:04]} Bg6 {[%emt 0:03:15]} 28. Qh3 {[%emt 0:00:35]} Be4 {[%emt 0:00:53]} 29. Rf3 {[%emt 0:00:34]} Rg3 {[%emt 0:02:58]} 30. Bxe3 {[%emt 0:02:17]} Bxf3+ {[%emt 0:00:09]} 0-1